lending/lending_fUSD_20240510
["ID","MTS","AMOUNT","RATE_DAILY","PERIOD"]
[326780705,1715357453553,-1266.44,0.00027397,4]
[326780708,1715357453562,-500.0,0.00027397,4]
[326780710,1715357453571,-500.0,0.00027397,4]
[326780712,1715357453581,-500.0,0.00027397,4]
[326780714,1715357453592,-518.70448858,0.00027397,4]
[326780716,1715357453601,-498.46099834,0.00027397,4]
[326780718,1715357453610,-500.0,0.00027397,4]
[326780720,1715357453620,-1543.34,0.00027397,4]
[326780721,1715357453629,-506.43025325,0.00027397,4]
[326780724,1715357453638,-500.0,0.00027397,4]
[326780726,1715357453647,-891.46,0.00027397,4]
[326780728,1715357453657,-500.0,0.00027397,4]
[326780730,1715357453666,-500.0,0.00027397,4]
[326780732,1715357453675,-500.0,0.00027397,4]
[326780734,1715357453685,-506.69814023,0.00027397,4]
[326780766,1715357453968,-435.73890451,0.00027397,4]
[326780769,1715357453989,-716.46,0.00027397,4]
[326780771,1715357453999,-178.08944478,0.00027397,4]
[326780773,1715357454009,-499.99575456,0.00027397,4]
[326780775,1715357454018,-500.0,0.00027397,4]
[326780777,1715357454028,-500.0,0.00027397,4]
[326780779,1715357454037,-1014.19,0.00027397,4]
[326780781,1715357454046,-504.57653448,0.00027397,4]
[326780783,1715357454056,-1990.42,0.00027397,4]
[326780785,1715357454065,-500.0,0.00027397,4]
[326780787,1715357454074,-511.28424152,0.00027397,4]
[326780789,1715357454084,-901.09,0.00027397,4]
[326780791,1715357454094,-500.0,0.00027397,4]
[326780793,1715357454104,-512.82223353,0.00027397,4]
[326780795,1715357454113,-502.53839625,0.00027397,4]
[326780797,1715357454123,-546.02789371,0.00027397,4]
[326780799,1715357454133,-500.0,0.00027397,4]
[326780801,1715357454142,-500.0,0.00027397,4]
[326780803,1715357454152,-510.45268244,0.00027397,4]
[326780805,1715357454162,-1093.35,0.00027397,4]
[326780807,1715357454172,-514.4740542,0.00027397,4]
[326780809,1715357454182,-500.0,0.00027397,4]
[326780811,1715357454191,-500.0,0.00027397,4]
[326780813,1715357454202,-510.42285701,0.00027397,4]
[326780815,1715357454211,-500.0,0.00027397,4]
[326780817,1715357454221,-705.76,0.00027397,4]
[326780819,1715357454230,-500.0,0.00027397,4]
[326780821,1715357454239,-559.47,0.00027397,4]
[326780823,1715357454249,-500.0,0.00027397,4]
[326780825,1715357454258,-500.0,0.00027397,4]
[326780827,1715357454268,-505.88552208,0.00027397,4]
[326780829,1715357454278,-734.85,0.00027397,4]
[326780831,1715357454288,-300.0,0.00027397,4]
[326780833,1715357454298,-1284.69,0.00027397,4]
[326780835,1715357454308,-2406.84,0.00027397,4]
[326780837,1715357454317,-500.0,0.00027397,4]
[326780839,1715357454327,-500.0,0.00027397,4]
[326780841,1715357454338,-947.25,0.00027397,4]
[326780843,1715357454347,-503.97640729,0.00027397,4]
[326780845,1715357454357,-500.0,0.00027397,4]
[326780847,1715357454366,-500.0,0.00027397,4]
[326780849,1715357454376,-784.43,0.00027397,4]
[326780851,1715357454385,-500.0,0.00027397,4]
[326780853,1715357454395,-375.82956374,0.00027397,4]
[326780855,1715357454404,-504.16890173,0.00027397,4]
[326780857,1715357454414,-500.0,0.00027397,4]
[326780860,1715357454424,-506.11782306,0.00027397,4]
[326780862,1715357454433,-500.0,0.00027397,4]
[326780864,1715357454442,-500.0,0.00027397,4]
[326780866,1715357454452,-635.31,0.00027397,4]
[326780868,1715357454461,-500.0,0.00027397,4]
[326780870,1715357454470,-1989.2,0.00027397,4]
[326780872,1715357454480,-1041.56,0.00027397,4]
[326780874,1715357454489,-500.0,0.00027397,4]
[326780875,1715357454503,-500.0,0.00027397,4]
[326780877,1715357454513,-1186.2,0.00027397,4]
[326780880,1715357454523,-500.0,0.00027397,4]
[326780881,1715357454534,-513.96607744,0.00027397,4]
[326780883,1715357454544,-504.75076759,0.00027397,4]
[326780886,1715357454554,-680.02,0.00027397,4]
[326780888,1715357454564,-500.0,0.00027397,4]
[326780890,1715357454574,-505.19784932,0.00027397,4]
[326780892,1715357454585,-514.88670859,0.00027397,4]
[326780893,1715357454596,-500.0,0.00027397,4]
[326780896,1715357454606,-508.33512093,0.00027397,4]
[326780898,1715357454615,-500.0,0.00027397,4]
[326780900,1715357454624,-500.0,0.00027397,4]
[326780902,1715357454633,-500.0,0.00027397,4]
[326780904,1715357454642,-2409.19,0.00027397,4]
[326780906,1715357454652,-500.0,0.00027397,4]
[326780908,1715357454662,-500.0,0.00027397,4]
[326780910,1715357454672,-500.0,0.00027397,2]
[326780912,1715357454681,-500.0,0.00027397,4]
[326780914,1715357454691,-6683.27,0.00027397,4]
[326780916,1715357454700,-516.72141267,0.00027397,4]
[326780918,1715357454709,-1270.13,0.00027397,4]
[326780920,1715357454719,-500.0,0.00027397,4]
[326780922,1715357454728,-500.0,0.00027397,4]
[326780924,1715357454737,-1108.44,0.00027397,4]
[326780925,1715357454747,-510.53891301,0.00027397,4]
[326780928,1715357454757,-500.0,0.00027397,4]
[326780930,1715357454765,-515.62218978,0.00027397,4]
[326780932,1715357454775,-500.0,0.00027397,4]
[326780934,1715357454785,-687.55,0.00027397,4]
[326780936,1715357454794,-511.8162813,0.00027397,4]
[326780938,1715357454803,-500.0,0.00027397,4]
[326780940,1715357454812,-500.0,0.00027397,4]
[326780942,1715357454821,-500.0,0.00027397,4]
[326780943,1715357454831,-500.0,0.00027397,4]
[326780946,1715357454843,-500.0,0.00027397,4]
[326780948,1715357454852,-998.45,0.00027397,4]
[326780949,1715357454862,-500.0,0.00027397,4]
[326780952,1715357454872,-509.07409146,0.00027397,4]
[326780954,1715357454881,-1076.87,0.00027397,4]
[326780956,1715357454892,-500.0,0.00027397,4]
[326780958,1715357454901,-500.0,0.00027397,4]
[326780960,1715357454910,-513.92,0.00027397,4]
[326780962,1715357454920,-500.0,0.00027397,4]
[326780964,1715357454929,-24711.2,0.00027397,4]
[326780966,1715357454938,-500.0,0.00027397,4]
[326780968,1715357454947,-500.0,0.00027397,4]
[326780970,1715357454957,-1746.36,0.00027397,4]
[326780972,1715357454966,-636.61,0.00027397,4]
[326780973,1715357454976,-500.0,0.00027397,4]
[326780974,1715357454986,-568.2,0.00027397,4]
[326780975,1715357454996,-702.91,0.00027397,4]
[326780976,1715357455006,-500.0,0.00027397,4]
[326780977,1715357455016,-509.75074327,0.00027397,4]
[326780978,1715357455026,-500.0,0.00027397,4]
[326780979,1715357455036,-500.0,0.00027397,4]
[326780980,1715357455045,-1043.71,0.00027397,4]
[326780981,1715357455055,-500.0,0.00027397,4]
[326780982,1715357455065,-365.4878498,0.00027397,4]
[326780985,1715357455075,-1522.22,0.00027397,4]
[326780987,1715357455084,-513.19106059,0.00027397,4]
[326780989,1715357455096,-429.55168101,0.00027397,2]
[326780991,1715357455105,-500.0,0.00027397,4]
[326780993,1715357455115,-1593.7,0.00027397,4]
[326780995,1715357455124,-500.0,0.00027397,4]
[326780997,1715357455133,-295.08397468,0.00027397,4]
[326780998,1715357455143,-931.27,0.00027397,4]
[326781000,1715357455153,-500.0,0.00027397,4]
[326781003,1715357455163,-500.0,0.00027397,4]
[326781005,1715357455172,-500.0,0.00027397,4]
[326781007,1715357455182,-2074.35,0.00027397,4]
[326781009,1715357455192,-557.88,0.00027397,4]
[326781011,1715357455202,-500.0,0.00027397,4]
[326781013,1715357455211,-639.81,0.00027397,4]
[326781015,1715357455221,-500.0,0.00027397,4]
[326781017,1715357455230,-508.24584677,0.00027397,4]
[326781019,1715357455240,-2551.15,0.00027397,4]
[326781021,1715357455250,-1351.85,0.00027397,4]
[326781023,1715357455259,-868.17,0.00027397,4]
[326781025,1715357455269,-3084.2,0.00027397,4]
[326781027,1715357455278,-1969.47,0.00027397,4]
[326781029,1715357455288,-500.0,0.00027397,4]
[326781031,1715357455297,-652.32,0.00027397,4]
[326781033,1715357455307,-500.0,0.00027397,4]
[326781035,1715357455316,-500.0,0.00027397,4]
[326781037,1715357455325,-500.0,0.00027397,4]
[326781039,1715357455334,-500.0,0.00027397,4]
[326781041,1715357455347,-500.0,0.00027397,4]
[326781043,1715357455356,-500.0,0.00027397,4]
[326781045,1715357455367,-648.93,0.00027397,4]
[326781047,1715357455377,-500.0,0.00027397,4]
[326781049,1715357455387,-500.0,0.00027397,4]
[326781051,1715357455397,-2328.92,0.00027397,4]
[326781053,1715357455406,-500.0,0.00027397,4]
[326781055,1715357455416,-620.62209703,0.00027397,4]
[326781057,1715357455425,-500.0,0.00027397,4]
[326781059,1715357455435,-1913.52,0.00027397,4]
[326781061,1715357455445,-510.71611748,0.00027397,4]
[326781063,1715357455455,-500.0,0.00027397,4]
[326781065,1715357455464,-561.16,0.00027397,4]
[326781067,1715357455474,-1104.39,0.00027397,4]
[326781069,1715357455483,-5869.59,0.00027397,4]
[326781071,1715357455494,-500.0,0.00027397,4]
[326781073,1715357455506,-537.54,0.00027397,4]
[326781074,1715357455516,-506.6683604,0.00027397,4]
[326781075,1715357455526,-2347.85,0.00027397,4]
[326781077,1715357455536,-500.0,0.00027397,4]
[326781079,1715357455546,-1855.69,0.00027397,4]
[326781081,1715357455557,-500.0,0.00027397,4]
[326781083,1715357455567,-500.0,0.00027397,4]
[326781085,1715357455578,-500.0,0.00027397,4]
[326781087,1715357455595,-2774.64,0.00027397,4]
[326781089,1715357455605,-1756.77,0.00027397,4]
[326781091,1715357455615,-500.0,0.00027397,4]
[326781093,1715357455625,-925.08,0.00027397,4]
[326781096,1715357455636,-6623.08,0.00027397,4]
[326781097,1715357455647,-500.0,0.00027397,4]
[326781100,1715357455658,-2009.0,0.00027397,4]
[326781102,1715357455672,-529.97271123,0.00027397,4]
[326781103,1715357455683,-500.0,0.00027397,4]
[326781105,1715357455694,-869.45,0.00027397,4]
[326781107,1715357455705,-508.11237577,0.00027397,4]
[326781109,1715357455716,-500.0,0.00027397,4]
[326781112,1715357455727,-1800.6,0.00027397,4]
[326781113,1715357455738,-511.29793503,0.00027397,4]
[326781116,1715357455749,-500.0,0.00027397,4]
[326781118,1715357455760,-3262.52,0.00027397,4]
[326781120,1715357455773,-500.0,0.00027397,4]
[326781122,1715357455783,-2579.38,0.00027397,4]
[326781124,1715357455794,-5376.77,0.00027397,4]
[326781126,1715357455805,-500.0,0.00027397,4]
[326781128,1715357455816,-1318.64,0.00027397,4]
[326781130,1715357455827,-511.02785022,0.00027397,4]
[326781132,1715357455837,-500.0,0.00027397,4]
[326781134,1715357455855,-588.73,0.00027397,4]
[326781136,1715357455865,-1038.95,0.00027397,4]
[326781138,1715357455874,-500.0,0.00027397,4]
[326781140,1715357455886,-1177.56,0.00027397,4]
[326781142,1715357455896,-1969.09,0.00027397,4]
[326781144,1715357455906,-500.0,0.00027397,4]
[326781146,1715357455916,-531.11,0.00027397,4]
[326781148,1715357455927,-500.0,0.00027397,4]
[326781150,1715357455936,-500.0,0.00027397,4]
[326781152,1715357455946,-4255.33,0.00027397,4]
[326781154,1715357455955,-2157.38,0.00027397,4]
[326781155,1715357455965,-508.70388523,0.00027397,4]
[326781157,1715357455975,-500.0,0.00027397,4]
[326781160,1715357455985,-500.0,0.00027397,4]
[326781162,1715357455995,-5445.45,0.00027397,4]
[326781164,1715357456004,-500.0,0.00027397,4]
[326781166,1715357456013,-1693.07,0.00027397,4]
[326781168,1715357456023,-500.0,0.00027397,4]
[326781170,1715357456033,-706.96,0.00027397,4]
[326781172,1715357456043,-8399.79,0.00027397,4]
[326781174,1715357456052,-9236.48,0.00027397,4]
[326781176,1715357456062,-677.67,0.00027397,4]
[326781178,1715357456072,-500.0,0.00027397,4]
[326781180,1715357456081,-500.68,0.00027397,4]
[326781182,1715357456094,-500.0,0.00027397,4]
[326781184,1715357456104,-2694.83,0.00027397,4]
[326781186,1715357456113,-2451.09,0.00027397,4]
[326781187,1715357456123,-500.0,0.00027397,4]
[326781190,1715357456133,-681.92,0.00027397,4]
[326781192,1715357456142,-618.14,0.00027397,4]
[326781194,1715357456152,-5846.99003516,0.00027397,4]
[326781315,1715357457364,-237.03062149,0.00017259,2]
[326781317,1715357457374,-512.21132008,0.00022198,2]
[326781319,1715357457384,-293.94996484,0.00027397,4]
[326781321,1715357457394,-509.63791469,0.00027397,4]
[326781323,1715357457404,-506.48239752,0.00027397,4]
[326781325,1715357457413,-6114.52,0.00027397,4]
[326781327,1715357457423,-1019.57,0.00027397,4]
[326781329,1715357457431,-499.63237177,0.00027397,4]
[326781331,1715357457440,-345.00016307,0.00027397,4]
[326781333,1715357457449,-1625.96524638,0.00027397,4]
[326781335,1715357457460,-30625.24475362,0.00027397,4]
[326781337,1715357457469,-624.06,0.00027397,4]
[326781340,1715357457478,-13131.86,0.00027397,4]
[326781342,1715357457488,-500.0,0.00027397,4]
[326781343,1715357457502,-509.44308359,0.00027397,4]
[326781346,1715357457511,-808.39,0.00027397,4]
[326781347,1715357457521,-2003.52222916,0.00027397,4]
[326781350,1715357457530,-5472.21,0.00027397,4]
[326781351,1715357457541,-500.0,0.00027397,4]
[326781354,1715357457550,-4645.44,0.00027397,4]
[326781356,1715357457559,-2803.22,0.00027397,4]
[326781357,1715357457568,-820.3,0.00027397,4]
[326781360,1715357457580,-500.0,0.00027397,4]
[326781362,1715357457590,-513.32609064,0.00027397,4]
[326781364,1715357457601,-500.0,0.00027397,4]
[326781366,1715357457610,-793.31,0.00027397,4]
[326781368,1715357457619,-8171.42,0.00027397,4]
[326781369,1715357457628,-500.0,0.00027397,4]
[326781371,1715357457637,-2811.67,0.00027397,4]
[326781373,1715357457646,-1406.07,0.00027397,4]
[326781375,1715357457656,-513.76168935,0.00027397,4]
[326781377,1715357457665,-948.24966384,0.00027397,4]
[326781381,1715357457692,-330.80575444,0.00027397,4]
[326781398,1715357457834,-1365.42458172,0.00027397,4]
[326781400,1715357457846,-7488.16,0.00027397,4]
[326781402,1715357457855,-500.0,0.00027397,4]
[326781404,1715357457864,-590.69713295,0.00027397,4]
[326781406,1715357457873,-607.07,0.00027397,4]
[326781408,1715357457882,-512.36541136,0.00027397,4]
[326781410,1715357457892,-1447.45,0.00027397,4]
[326781412,1715357457901,-500.0,0.00027397,4]
[326781414,1715357457911,-2106.42,0.00027397,4]
[326781416,1715357457921,-2301.9,0.00027397,4]
[326781418,1715357457931,-228.10379924,0.00027397,4]
[326781420,1715357457940,-151.0,0.00027397,7]
[326781422,1715357457949,-151.0,0.00027397,7]
[326781424,1715357457959,-151.0,0.00027397,7]
[326781426,1715357457968,-206.61205825,0.00027397,4]
[326781435,1715357458040,-293.38794175,0.00027397,4]
[326781437,1715357458049,-151.0,0.00027397,7]
[326781439,1715357458058,-281.71205825,0.00027397,4]
[326781442,1715357458070,-218.28794175,0.00027397,4]
[326781444,1715357458079,-151.0,0.00027397,7]
[326781446,1715357458088,-548.79,0.00027397,4]
[326781448,1715357458100,-1959.82,0.00027397,4]
[326781450,1715357458109,-236.37705825,0.00027397,4]
[326781468,1715357458276,-160.6591699,0.00022198,2]
[326781470,1715357458285,-263.62294175,0.00027397,4]
[326781472,1715357458295,-672.31495106,0.00027397,4]
[326781477,1715357458335,-602.49933233,0.00027397,4]
[326781491,1715357458728,180.00360704,0.00012697,2]
[326781492,1715357460551,384.81399503,0.00012697,2]
[326781493,1715357462610,37.9642689,0.00012697,2]
[326781494,1715357463687,150.0,0.00010158,2]
[326781495,1715357463710,150.0,0.00010158,2]
[326781496,1715357463730,150.0,0.00010158,2]
[326781497,1715357463751,97.55323561,0.00010158,2]
[326781498,1715357492226,155.96691017,0.00027394,120]
[326781499,1715357511080,193.22,0.00025581,120]
[326781500,1715357511476,193.22,0.00027907,120]
[326781504,1715357969165,5000.0,0.0003,20]
[326781506,1715358024432,5000.0,0.0003,20]
[326781507,1715358027596,5000.0,0.0003,20]
[326781509,1715358042320,5000.0,0.0003,20]
[326781530,1715358173339,5000.0,0.0003,20]
[326781531,1715358174254,5000.0,0.0003,20]
[326781532,1715358175091,5000.0,0.0003,20]
[326781533,1715358175780,5000.0,0.0003,20]
[326781534,1715358176745,5000.0,0.0003,20]
[326781536,1715358243369,5000.0,0.0003,20]
[326781547,1715358475385,5000.0,0.0003,20]
[326781548,1715358478264,160.0,0.00024806,120]
[326781549,1715358478502,160.0,0.00027907,120]
[326781566,1715358632403,-594.0575846,0.00012625,2]
[326781568,1715358632416,-1625.82978727,0.00012625,2]
[326781570,1715358632425,-289.90594162,0.00012626,2]
[326781572,1715358632435,-237.03062149,0.00012626,2]
[326781574,1715358632444,-268.00020597,0.00012626,2]
[326781576,1715358632454,-155.0,0.00012626,2]
[326781577,1715358632463,-167.69662183,0.00012626,2]
[326781579,1715358632472,-344.0450991,0.00012627,2]
[326781581,1715358632482,-5711.7510237,0.00012645,2]
[326781582,1715358632494,-1256.0721124,0.00012645,2]
[326781583,1715358632509,-960.42655982,0.00012645,2]
[326781584,1715358632521,-27397.91209151,0.00012645,2]
[326781585,1715358632531,-638.66021407,0.00012697,2]
[326781586,1715358632540,-300.0,0.00016612,2]
[326781587,1715358632550,-175.78,0.00017295,2]
[326781588,1715358632559,-499.99,0.00017534,2]
[326781589,1715358632579,-642.0,0.000181,2]
[326781590,1715358632588,-1956.65769442,0.000181,2]
[326781591,1715358632605,-1049.34230558,0.000181,2]
[326781592,1715358632614,-1500.0,0.0001837,2]
[326781593,1715358632624,-440.08,0.00018396,3]
[326781594,1715358632633,-1151.1,0.00018478,2]
[326781595,1715358632642,-193.22,0.00018604,2]
[326781596,1715358632651,-840.71,0.00018604,2]
[326781597,1715358632661,-486.72,0.00018604,2]
[326781598,1715358632670,-179.04,0.00018604,2]
[326781615,1715358632893,-160.0,0.00018604,2]
[326781617,1715358632903,-500.0,0.0001876,2]
[326781619,1715358632913,-250.0,0.00018942,2]
[326781621,1715358632922,-5000.0,0.00019,2]
[326781623,1715358632932,-258.74,0.00019178,2]
[326781624,1715358632941,-151.02,0.00019178,2]
[326781627,1715358632951,-162.38,0.00019178,2]
[326781628,1715358632961,-178.87,0.00019213,2]
[326781630,1715358632972,-15389.2,0.00019326,2]
[326781632,1715358632981,-200.0,0.00019415,2]
[326781634,1715358632990,-500.0,0.000197,7]
[326781636,1715358633000,-1100.0,0.000198,7]
[326781638,1715358633009,-16956.41757974,0.000199,2]
[326781640,1715358633020,-177.79726392,0.000199,2]
[326781642,1715358633029,-418.39387981,0.000199,2]
[326781644,1715358633039,-1700.0,0.000199,7]
[326781646,1715358633049,-1674.83945,0.000199,2]
[326781648,1715358633058,-1338.07595997,0.000199,2]
[326781650,1715358633067,-1612.81433416,0.000199,2]
[326781652,1715358633077,-322.67536963,0.000199,2]
[326781654,1715358633086,-2458.05,0.00019911,2]
[326781656,1715358633095,-151.79,0.0001999,2]
[326781658,1715358633104,-151.79,0.0001999,2]
[326781660,1715358633114,-151.79,0.0001999,2]
[326781662,1715358633123,-151.79,0.0001999,2]
[326781664,1715358633132,-151.79,0.0001999,2]
[326781666,1715358633142,-151.79,0.0001999,2]
[326781668,1715358633151,-506.53956947,0.00019999,2]
[326781670,1715358633160,-500.0,0.00019999,2]
[326781671,1715358633169,-428.52126754,0.00019999,2]
[326781673,1715358633179,-500.0,0.00019999,2]
[326781675,1715358633188,-497.95555586,0.00019999,2]
[326781677,1715358633197,-41048.74559791,0.0002,2]
[326781679,1715358633206,-155.0,0.0002,2]
[326781681,1715358633216,-649198.38852704,0.0002,2]
[326781686,1715358633252,-291.44373864,0.0002,2]
[326781719,1715358638342,-183626.69183608,0.0002,2]
[326781720,1715358638496,-1504.21835503,0.0002,2]
[326781721,1715358638592,-1284.74873647,0.0002,2]
[326781722,1715358638604,-11742.36006912,0.0002,2]
[326781723,1715358638656,-1138.18072319,0.0002,2]
[326782049,1715358641979,-2934.1,0.0002,2]
[326782050,1715358641993,-183822.80602233,0.0002,2]
[326782051,1715358642004,-3069.39464495,0.0002,2]
[326782052,1715358642016,-9325.71168,0.0002,2]
[326782053,1715358642027,-8627.52192602,0.0002,2]
[326782079,1715358643560,-3051.0,0.0002,2]
[326782083,1715358643599,-249124.23323797,0.0002,2]
[326782084,1715358643824,-709.29485334,0.0002,2]
[326782085,1715358643930,-368342.51409312,0.0002,2]
[326782103,1715358646547,-158.05804344,0.00019999,2]
[326782104,1715358646558,-123.14968976,0.00019999,2]
[326782105,1715358646709,-288.29014097,0.00019999,2]
[326782106,1715358646720,-1362.65965553,0.00019999,2]
[326782685,1715358984940,595.14957263,0.0002988,30]
[326782690,1715359083463,193.22,0.00027907,120]
[326782692,1715359090488,58674.71379783,0.00027389,25]
[326782699,1715359226521,155.0,0.00011698,2]
[326782710,1715359560755,150.0,0.00011688,2]
[326782711,1715359758016,-186.99271062,0.00012011,2]
[326782712,1715359758038,-1623.6460252,0.00012011,2]
[326782713,1715359758059,-150.0,0.00012012,2]
[326782714,1715359758081,-150.0,0.00012337,2]
[326782715,1715359758104,-400.0,0.000125,4]
[326782716,1715359758126,-800.0,0.000126,4]
[326782717,1715359758146,-150.0,0.00012662,2]
[326782718,1715359758168,-1200.0,0.000127,4]
[326782719,1715359765621,-1700.0,0.000128,4]
[326782720,1715359770144,-347.87778272,0.000129,2]
[326782721,1715359770167,-6754.5911,0.000129,2]
[326782722,1715359770190,-3327.03591475,0.000129,2]
[326782723,1715359770212,-177.79726391,0.000129,2]
[326782724,1715359770237,-1846.59819373,0.000129,2]
[326782725,1715359770260,-2100.0,0.000129,4]
[326782726,1715359770284,-237.4013939,0.000129,2]
[326782727,1715359770309,-191.66773431,0.000129,2]
[326782728,1715359770332,-475.75,0.000129,2]
[326782729,1715359770355,-8350.64188086,0.000129,2]
[326782732,1715359816347,-2500.0,0.000129,2]
[326782733,1715359832208,-1050.0,0.000129,2]
[326782734,1715359832303,-450.0,0.000129,2]
[326782735,1715359832314,-298.03553182,0.000129,2]
[326782748,1715359837789,-1895.2468206,0.000129,2]
[326782749,1715359837802,-3174.56927049,0.000129,2]
[326782750,1715359837812,-321.84590786,0.000129,2]
[326782751,1715359837822,-217.91924981,0.000129,2]
[326782752,1715359837832,-158.26759592,0.000129,2]
[326782753,1715359837842,-150.00000001,0.00012986,2]
[326782754,1715359837852,-151.81,0.0001299,2]
[326782755,1715359837862,-250.83906553,0.0001299,2]
[326782756,1715359837872,-151.56,0.0001299,2]
[326782757,1715359837883,-151.56,0.0001299,2]
[326782758,1715359837893,-151.56,0.0001299,2]
[326782759,1715359837904,-151.56,0.0001299,2]
[326782760,1715359837914,-151.56,0.0001299,2]
[326782761,1715359837926,-151.56,0.0001299,2]
[326782762,1715359837936,-151.56,0.0001299,2]
[326782763,1715359837947,-151.56,0.0001299,2]
[326782764,1715359837958,-151.56,0.0001299,2]
[326782765,1715359837968,-151.56,0.0001299,2]
[326782766,1715359837978,-151.56,0.0001299,2]
[326782767,1715359837988,-151.56,0.0001299,2]
[326782768,1715359837998,-151.56,0.0001299,2]
[326782769,1715359838008,-151.56,0.0001299,2]
[326782770,1715359838019,-151.56,0.0001299,2]
[326782771,1715359838035,-151.56,0.0001299,2]
[326782772,1715359838045,-151.56,0.0001299,2]
[326782773,1715359838054,-151.56,0.0001299,2]
[326782774,1715359838065,-151.56,0.0001299,2]
[326782775,1715359838074,-155.32500028,0.00012998,2]
[326782777,1715359838084,-155.0,0.00012998,2]
[326782779,1715359838093,-539.12298364,0.00012998,2]
[326782781,1715359838104,-363.20906257,0.00012998,2]
[326782783,1715359838114,-409.16215093,0.00012998,2]
[326782785,1715359838124,-326.32137656,0.00012998,2]
[326782787,1715359838134,-1606.73429789,0.00012998,2]
[326782789,1715359838144,-1075.38102856,0.00012998,2]
[326782791,1715359838154,-156.92700433,0.00012999,2]
[326782793,1715359838164,-1021.63834331,0.00012999,3]
[326782796,1715359838174,-1765.62953938,0.00012999,2]
[326782798,1715359838183,-356747.91972,0.00013,2]
[326782800,1715359838196,-754630.78055961,0.00013,2]
[326782804,1715359838229,-11624.99978887,0.00013,2]
[326782917,1715359839920,-155.0,0.00012899,2]
[326782918,1715359839930,-4860.0,0.00013,2]
[326782919,1715359840031,-3950.40628861,0.00013,2]
[326782920,1715359840043,-403.8655126,0.00013,2]
[326782927,1715359840145,-1077.71805683,0.00013,2]
[326782929,1715359840157,-1464.85383896,0.00013,2]
[326782932,1715359840169,-2436.06039907,0.00013,2]
[326782934,1715359840181,-122049.79833824,0.00013,2]
[326783172,1715359845644,-487.331,0.00013,2]
[326783173,1715359845754,-4300.86028862,0.00013,2]
[326783174,1715359845766,-18285.3,0.00013,2]
[326783175,1715359845868,-3188.65,0.00013,2]
[326783554,1715359856162,150.0,9.675e-05,2]
[326783555,1715359856184,150.0,9.675e-05,2]
[326783556,1715359856204,150.0,9.675e-05,2]
[326783557,1715359856224,150.0,9.675e-05,2]
[326783558,1715359856244,150.0,9.675e-05,2]
[326783559,1715359856263,150.0,9.675e-05,2]
[326783560,1715359856284,150.0,9.675e-05,2]
[326783561,1715359856304,150.0,9.675e-05,2]
[326783562,1715359856327,150.0,9.675e-05,2]
[326783563,1715359856347,150.0,9.675e-05,2]
[326783564,1715359856368,150.0,9.675e-05,2]
[326783565,1715359856390,150.0,9.675e-05,2]
[326783566,1715359856412,250.87278842,9.675e-05,2]
[326783567,1715359856436,494.56552808,9.675e-05,2]
[326783568,1715359858671,2545.4383165,9.675e-05,2]
[326783569,1715359898640,269.08027735,7.256e-05,2]
[326783570,1715359898663,2276.35803915,7.256e-05,2]
[326783571,1715359909379,12683.63811627,9.675e-05,2]
[326783572,1715359909402,130849.24863463,9.675e-05,2]
[326783578,1715359932644,1285.20152074,7.256e-05,2]
[326783600,1715360759229,150.00000001,0.00011688,2]
[326783610,1715360909461,151.38728429,0.0003,20]